Cogmind - Beta 13 @@@ ROGUE MODE // 2024.04.12 @ 18:35:05 Player: Bearly Playable Result: Self-destructed Performance ------------- Evolutions (1) 500 Regions Visited (2) 400 Robots Destroyed (24) 120 Value Destroyed (481) 481 Prototype IDs (0) 0 Alien Tech Used (0) 0 Bonus (0) 0 TOTAL SCORE: 1501 Bonus ------- None Cogmind --------- Core Integrity 223/400 Matter 189/300 Energy 100/100 System Corruption 0% Temperature Cool (0) Movement Core (100) Ox1 Location -9/Materials Parts ------- > --- POWER (1) -------- (None) > --- PROPULSION (2) --- (None) > --- UTILITY (3) ------ Small Storage Unit Hacking Suite > --- WEAPON (3) ------- (None) > --- INVENTORY (8) ---- Ion Engine Advanced Weight Redist. System Sensor Array Signal Interpreter Medium Laser Small Laser Grenade Launcher Peak State ------------ > --- POWER ------------ Light Nuclear Core > --- PROPULSION ------- Wheel Compact Wheel > --- UTILITY ---------- Improved Heat Sink Small Storage Unit Advanced Weight Redist. System > --- WEAPON ----------- Shock Rifle Shock Rifle Shock Rifle > --- INVENTORY -------- Ion Engine Sensor Array Signal Interpreter Hacking Suite Shock Rifle Medium Laser Small Laser Grenade Launcher [Rating: 22] Favorites ----------- Power Ion Engine Engine Ion Engine Power Core Light Nuclear Core Propulsion Wheel Wheel Wheel Utility Small Storage Unit Device Improved Heat Sink Storage Small Storage Unit Hackware Hacking Suite Protection Light Armor Plating Weapon Medium Laser Energy Gun Medium Laser Launcher Grenade Launcher Build | -11 -10 -9 ------- Run | Yrd Mat Mat Slots Evolved 2 | . . 2 Power . | . . . Propulsion . | . . . Utility 1 | . . 1 Weapon 1 | . . 1 Parts Attached 30 | 9 14 7 Power 3 | 2 1 . Engine 2 | 2 . . Core 1 | . 1 . Reactor . | . . . Propulsion 6 | 2 4 . Treads . | . . . Leg . | . . . Wheel 6 | 2 4 . Hover . | . . . Flight . | . . . Utility 5 | 1 2 2 Device 2 | . 1 1 Storage 1 | 1 . . Processor . | . . . Hackware 1 | . . 1 Protection 1 | . 1 . Artifact . | . . . Weapon 16 | 4 7 5 Energy Gun 14 | 4 5 5 Energy Cannon . | . . . Ballistic Gun . | . . . Ballistic Cannon . | . . . Launcher 2 | . 2 . Special Weapon . | . . . Impact Weapon . | . . . Slashing Weapon . | . . . Piercing Weapon . | . . . Special Melee Weapon . | . . . Unidentified Prototypes . | . . . Parts Lost 10 | . 2 8 Power 1 | . . 1 Propulsion 3 | . 1 2 Utility 2 | . 1 1 Weapon 4 | . . 4 Highest Loss Streak 8 | . 2 8 To Critical Strikes . | . . . Average Slot Usage (%) 95 | . 97 86 Engine 6 | . 8 . Core 6 | . 5 10 Wheel 25 | . 26 19 Device 4 | . 2 10 Storage 13 | . 14 11 Hackware 1 | . . 7 Protection 8 | . 9 . Energy Gun 27 | . 27 26 Naked Turns . | . . . Heaviest Build 20 | 14 18 20 Greatest Support 35 | 20 26 35 Greatest Overweight (x) 4 | . 4 4 Average Overweight (x) . | . . . Largest Inventory Capacity 8 | 8 8 8 Average Capacity 7 | 6 8 8 Most Carried 8 | 3 8 8 Average Carried 5 | 1 5 7 Final Capacity 8 | 8 8 8 Final Carried 7 | 2 6 7 Class Distribution -------------------- 89% | Mutant 6% | Scavenger-Gunner 3% | Gunner Dominant Class ---------------- Mutant | -10/Materials Scavenger-Gunner | -9/Materials Resources | -11 -10 -9 ----------- Run | Yrd Mat Mat Matter Collected 495 | 188 247 60 Remotely . | . . . Salvage Created 776 | . 671 105 Parts 50 | . 36 14 Haulers Intercepted . | . . . Recyclers Shooed 4 | . 3 1 Parts Field Recycled . | . . . Retrieved Matter . | . . . Parts Self-Destructed . | . . . Prevented . | . . . Kills | -11 -10 -9 ------- Run | Yrd Mat Mat Combat Hostiles Destroyed 15 | . 13 2 Guns 12 | . 10 2 AOE 3 | . 3 . Classes Destroyed 7 | . 5 2 Tunneler 1 | . . 1 Recycler 3 | . 3 . Operator 1 | . 1 . Watcher 4 | . 3 1 Swarmer 7 | . 6 1 Grunt 7 | . 7 . Sentry 1 | . . 1 Best Kill Streak 3 | . 3 3 Combat Bots Only 3 | . 3 1 Max Kills in Single Turn 2 | . 2 2 Gunslinging 1 | . 1 . Exploded 1 | . 1 . Melee . | . . . Uniques/NPCs Destroyed . | . . . Combat | -11 -10 -9 -------- Run | Yrd Mat Mat Hostile Shots Fired 114 | . 55 59 Missed 35 | . 17 18 Damage Taken 973 | . 402 571 Core 265 | . 88 177 Absorbed by Shields . | . . . Core Remaining (%) 82 | 100 64 . Volleys Fired 75 | . 63 12 Largest 3 | . 2 3 Hottest 150 | . 100 150 Shots Fired 141 | . 113 28 Gun 138 | . 110 28 Cannon . | . . . Launcher 3 | . 3 . Special . | . . . Kinetic . | . . . Thermal 90 | . 90 . Explosive 3 | . 3 . Electromagnetic 48 | . 20 28 Robot Hit Streak 6 | . 6 6 Robot Miss Streak 4 | . 4 4 Penetration Max . | . . . Secondary Targets 1 | . 1 . Max Gunslinging Chain 1 | . 1 . Shots Hit Robots 76 | . 59 17 Core Hits 35 | . 28 7 Critical Kills . | . . . Critical Parts Destroyed . | . . . Critical Strikes 6 | . 5 1 Burn 3 | . 3 . Corrupt 3 | . 2 1 Melee Attacks . | . . . Impact . | . . . Slashing . | . . . Piercing . | . . . Sneak Attacks . | . . . Combat Hostiles . | . . . Follow-up Attacks . | . . . Damage Inflicted 1317 | . 940 377 Guns 1075 | . 738 337 Cannons . | . . . Explosions 233 | . 193 40 Melee . | . . . Ramming 9 | . 9 . Kinetic . | . . . Thermal 656 | . 616 40 Explosive 155 | . 155 . Electromagnetic 497 | . 160 337 Impact . | . . . Slashing . | . . . Piercing . | . . . Highest Corruption . | . . . Average Corruption . | . . . Corruption Purged . | . . . Corruption Blocked . | . . . Overload Shots . | . . . Overflow Damage . | . . . Projectiles . | . . . Explosions . | . . . Melee . | . . . Knockbacks . | . . . Impact . | . . . Kinetic . | . . . Secondary . | . . . Self-Inflicted Damage 4 | . 4 . Shots . | . . . Rammed 3 | . 3 . Targets Rammed 3 | . 3 . Kicked . | . . . Crushed . | . . . Highest Temperature 560 | . 560 228 Average Temperature 146 | . 156 98 Received Heat Transfer 258 | . 123 135 Effects 18 | . 17 1 Shutdowns 2 | . 2 . Energy Bleed 3 | . 2 1 Interference 1 | . 1 . Matter Decay 3 | . 3 . Short Circuit 3 | . 3 . Damage (minor) 2 | . 2 . Damage (major) 4 | . 4 . Siege Activations . | . . . Robots Corrupted . | . . . Combat Hostiles . | . . . Parts Fried 3 | . 1 2 Impact Corruptions . | . . . Robots Melted . | . . . Combat Hostiles . | . . . Parts Melted 2 | . 2 . Heat Transferred 2024 | . 1924 100 Parts Sabotaged . | . . . Parts Stolen . | . . . Parts Stripped . | . . . Power Chain Reactions 2 | . 1 1 Alert | -11 -10 -9 ------- Run | Yrd Mat Mat Peak Influence 328 | . 328 133 Initial 133 | . . 133 Average 175 | . 211 67 Maximum Alert Level 1 | . 1 . Low Security (%) 49 | 100 35 100 Level 1 50 | . 64 . Level 2 . | . . . Level 3 . | . . . Level 4 . | . . . Level 5 . | . . . High Security . | . . . Max Security . | . . . Squads Dispatched 5 | . 2 3 Investigation . | . . . Extermination . | . . . Reinforcement 5 | . 2 3 Assault . | . . . Garrison . | . . . Intercept . | . . . Searches Triggered . | . . . Construction Impeded . | . . . Haulers Reinforced . | . . . Active Scanning Responses . | . . . Cargo Convoy Interrupts . | . . . Stealth | -11 -10 -9 --------- Run | Yrd Mat Mat Distress Signals 5 | . 2 3 Communications Jammed . | . . . Distress Signals . | . . . Times Spotted 29 | . 23 6 Peak Tracking Total 5 | . 5 3 Tactical Retreats 2 | . 2 . Traps | -11 -10 -9 ------- Run | Yrd Mat Mat Traps Triggered 1 | . 1 . Indirectly . | . . . Trap Hack Attempts . | . . . Triggered . | . . . Disarmed . | . . . Reprogrammed . | . . . Reused . | . . . Traps Extracted . | . . . Installed . | . . . Triggered . | . . . Machines | -11 -10 -9 ---------- Run | Yrd Mat Mat Machines Disabled 1 | . 1 . Max in Single Turn 1 | . 1 . Machines Repaired . | . . . Machines Dismantled . | . . . Machines Sabotaged . | . . . Overloaded Fab Kills . | . . . Hacking | -11 -10 -9 --------- Run | Yrd Mat Mat Machines Accessed 1 | . . 1 Terminals 1 | . . 1 Fabricators . | . . . Repair Stations . | . . . Recycling Units . | . . . Scanalyzers . | . . . Garrison Access . | . . . Total Hacks 3 | . . 3 Successful 2 | . . 2 Failed 1 | . . 1 Catastrophic . | . . . Database Lockouts . | . . . Manual . | . . . Terminals 3 | . . 3 Fabricators . | . . . Repair Stations . | . . . Recycling Units . | . . . Scanalyzers . | . . . Garrison Access . | . . . Terminal Hacks 2 | . . 2 Record 1 | . . 1 Unreport Threat 1 | . . 1 Fabricator Hacks . | . . . Repair Station Hacks . | . . . Recycling Unit Hacks . | . . . Scanalyzer . | . . . Garrison Access Hacks . | . . . Unauthorized Hacks . | . . . Terminals . | . . . Fabricators . | . . . Repair Stations . | . . . Recycling Units . | . . . Scanalyzers . | . . . Garrison Access . | . . . Data Cores Recovered . | . . . Used . | . . . Hacking Detections . | . . . Full Trace Events . | . . . Feedback Events . | . . . Feedback Blocked . | . . . Robot Schematics Acquired . | . . . Robots Built . | . . . Authchips . | . . . Time . | . . . Total Robot Build Rating . | . . . Part Schematics Acquired . | . . . Parts Built . | . . . Authchips . | . . . Time . | . . . Total Part Build Rating . | . . . Parts Repaired . | . . . Time . | . . . Parts Recycled . | . . . Recycled Matter . | . . . Retrieved Matter . | . . . Retrieved Components . | . . . Parts Scanalyzed . | . . . Part Schematics Acquired . | . . . Parts Damaged . | . . . Bothacking | -11 -10 -9 ------------ Run | Yrd Mat Mat Used RIF Installer . | . . . Robots Hacked . | . . . Non-combat . | . . . Combat . | . . . Robot Hacks Applied . | . . . Relay Couplers Released . | . . . Fabnet Peak Effective % . | . . . Robots Rewired . | . . . Allies Hacked . | . . . Hacks Repelled . | . . . Allies | -11 -10 -9 -------- Run | Yrd Mat Mat Total Allies . | . . . Largest Group . | . . . Highest-Rated Group . | . . . Highest-Rated Ally . | . . . Total Orders . | . . . Ally Attacks . | . . . Total Damage . | . . . Kills . | . . . Allies Corrupted . | . . . Allies Melted . | . . . Intel | -11 -10 -9 ------- Run | Yrd Mat Mat Robot Analysis Total . | . . . Derelict Logs Recovered . | . . . Drone Launches . | . . . Drone Recoveries . | . . . Exploration | -11 -10 -9 ------------- Run | Yrd Mat Mat Turns Passed 961 | 58 750 153 Spaces Moved 760 | 53 600 107 Core 19 | 3 10 6 Treads . | . . . Legs . | . . . Wheels 741 | 50 590 101 Hover . | . . . Flight . | . . . Fastest Speed 50 | 50 80 90 Average Speed 88 | 78 87 95 Slowest Speed 250 | 80 250 250 Overloaded Moves . | . . . Propulsion Burnouts . | . . . Robots Hopped . | . . . Cave-ins Triggered . | . . . Exploration Rate (%) 25 | 3 59 14 Regions Visited 2 Branch Regions . Pre-discovered Areas . | . . . Known Exits Taken . | . . . Unknown Exits Taken 2 | 1 1 . Scrap Searched . | . . . Spaces Dug . | . . . Terrain Destroyed 26 | . 21 5 Melee . | . . . Projectile . | . . . AOE 26 | . 21 5 Terrain Rammed . | . . . Walls Destroyed . | . . . Machines Disabled . | . . . Actions | -11 -10 -9 --------- Run | Yrd Mat Mat Total 905 | 65 707 133 Wait 11 | . 11 . Move 758 | 52 599 107 Hop . | . . . Pick Up 19 | 3 11 5 Fast Attach 7 | 6 . 1 Attach 7 | . 4 3 Detach 1 | . 1 . Swap 16 | 3 10 3 Drop 8 | 1 5 2 Fire 75 | . 63 12 Melee . | . . . Ram 3 | . 3 . Kick . | . . . Crush . | . . . Escape Stasis . | . . . Rewire . | . . . Trap . | . . . Miscellaneous . | . . . Route ------- -11/Scrapyard -10/Materials (discovered 5 exits: *Mat x3 / [*Min] / [*Sub]) -9/Materials History --------- Turn | Location | Event 45 | -11/Scrapyard | Discovered new exit (range 14) 59 | -11/Scrapyard | Entered Materials 250 | -10/Materials | Discovered new exit (range 11) 345 | -10/Materials | Build established: Mutant 510 | -10/Materials | Discovered new exit (range 9) 516 | -10/Materials | Discovered new exit (range 12) 550 | -10/Materials | Discovered new exit (range 14) 764 | -10/Materials | Discovered new exit (range 3) 809 | -10/Materials | Entered another Materials area 809 | -9/Materials | Evolved 2 slots: Utility x1, Weapon x1 962 | -9/Materials | Self-destructed Last Messages --------------- U-05 Engineer builds a Wall. Imp. Heat Sink destroyed. Shock Rifle destroyed. S-10 Pest destroyed. Y-45 Defender IFF system glitched. U-05 Engineer builds a Door. Shock Rifle destroyed. Wheel destroyed. U-05 Engineer lays Concrete. Com. Wheel destroyed. U-05 Engineer builds a Wall. Overheating: Energy bleed (-27). K-01 Serf collects debris. U-05 Engineer lays Concrete. ALERT: Hostiles spotted, dispatching reinforcements to Terminal M004. Shock Rifle destroyed. Acquired 60 matter. K-01 Serf collects debris. Lgt. Nuclear Core destroyed. Y-45 Defender IFF system glitched. Map ----- +----------------------------------------------------+ | ???????????????????????????????????????????????? | | ???????????????????????????????????????????????? | | ???????????????????????????????????????????????? | | ???????????????????????????????????????????????? | | ???????????????????????????????????????????????? | | ???????????????????????????????????????????????? | | ???????????????????????????????????????????????? | | ???????????????????????????????????????????????? | | ???????????????????????????????????????????????? | | ???????????????????????????????????????????????? | | ???????????????????????? ????????????????????? | | ???????????????????????? #???????????????????? | | ???????????????????????? #???????????????????? | | ?????#####?????????????# #???????????????????? | | ?????+ ?????????????# #???????????????????? | | ?????# ????????????# #???????????????????? | | ?????# ????????????+ +???????????????????? | | ?????# ????????????#r #???????????????????? | | ?????# ????????????# #???????????????????? | | ?????# ????????????# #???????????????????? | | ??????? ????????????# #???????????????????? | | ???????? ????????????# #???????????????????? | | ????????##"##???##?????# #???????????????????? | | ???###### =############ #### ###????????????? | | ???? [%*s= ! #????????????? | | ????????# = u % *t@k +????????????? | | ????????# u Y [ = #????????????? | | ????????# #############+####### #????????????? | | ????????# #?#####????? ???????????????????? | | ????????# #??????????? ??????????????????? | | ????????# #?######???? """ #?????????????????? | | ????????# # #???? """ #?????????????????? | | ????????# # #??? """ +?????????????????? | | ????????# + #??? #?????????????????? | | ????????# # """ #??? ??#?????????????????? | | ????????# # """ ]#??? ??????????????????????? | | ????????# #?""" #??###??????????????????????? | | ????????# #?######???????????????????????????? | | ????????# #??????????????????????????????????? | | ######### #??????????????????????????????????? | | + #??????????????????????????????????? | | " # #??????????????????????????????????? | | T # #??????????????????????????????????? | | " ?# #??????????????????????????????????? | | [[[?# #??????????????????????????????????? | | [[??# #??????????????????????????????????? | | [[??# #??????????????????????????????????? | | ???# #?????????????########?????????????? | | ???# #?????????????# [ !!!#?????????????? | | ## #????# #?????????????# !!!!#?????????????? | +----------------------------------------------------+ Best States ------------- Heat Dissipation 42 Energy Generation 14 Energy Capacity 250 Matter Stores 300 Matter Capacity 300 Sight Range 16 Terrain Scan Density 10 Additional Mass Support 9 Armor Coverage 150 Evasion (%) 44 Offensive Hacking 10 Item Schematics ----------------- None Robot Schematics ------------------ None Fabricated ------------ Nothing Alien Tech Used ----------------- None Achievements -------------- None Challenges ------------ None Game ------ Seed MinesnifferCoolantWings Manual? 0 Play Time 00:18:23 Cumulative 3.9 hours Start 2024.04.12 @ 18:13:03 End 2024.04.12 @ 18:35:05 Sessions 1 Manual Loads 0 Difficulty Rogue Special Mode None Game No. 9 Rogue 9 Adventurer 0 Explorer 0 Win Type - Total 0 Types 0/0/0/0/0/0/0/0/0 Lore% 1 Gallery% 6 Achievement% 6 Wizard Run 0 Options --------- Layout 1 ASCII 0 Keyboard 0 Movement Arrows Keybinds 0 Fullscreen 1 Font 32/SmallcapsGlow Map View 77x35 Zoom Use 0% Tactical HUD 0 Map Filters NONE Filters NONE Steam 1 RUN: d7ca1a05-905c-4b33-9f19-4567fd37ace8